bitfinex/quotes_BTCUSD_20230404
["timestamp","ask_amount","ask_price","bid_price","bid_amount"]
[1680632064632,2.430972,28178.0,28177.0,0.01911224]
[1680632065479,2.51585634,28178.0,28177.0,0.01911224]
[1680632065704,2.87038455,28178.0,28177.0,0.01911224]
[1680632065983,2.430972,28178.0,28177.0,0.01911224]
[1680632066262,2.51585634,28178.0,28177.0,0.01911224]
[1680632066483,2.430972,28178.0,28177.0,0.01911224]
[1680632066822,2.51585634,28178.0,28177.0,0.01911224]
[1680632066979,2.430972,28178.0,28177.0,0.01911224]
[1680632067429,2.48885634,28178.0,28177.0,0.01911224]
[1680632067648,2.50785634,28178.0,28177.0,0.01911224]
[1680632067868,2.98458306,28178.0,28177.0,0.01911224]
[1680632068777,2.87740378,28178.0,28177.0,0.01911224]
[1680632069252,2.91969565,28178.0,28177.0,0.01911224]
[1680632069651,3.06260284,28178.0,28177.0,0.01911224]
[1680632069856,3.14758974,28178.0,28177.0,0.01911224]
[1680632070285,3.14758974,28178.0,28176.0,0.0231]
[1680632070514,1.64831116,28177.0,28176.0,0.0231]
[1680632070817,2.34831116,28177.0,28176.0,0.0231]
[1680632071245,2.43329806,28177.0,28176.0,0.0231]
[1680632071474,2.45929806,28177.0,28176.0,0.0231]
[1680632071938,2.57461412,28177.0,28176.0,0.0231]
[1680632073273,2.61680343,28177.0,28176.0,0.0231]
[1680632073495,2.26628199,28177.0,28176.0,0.0231]
[1680632073712,2.24028199,28177.0,28176.0,0.0231]
[1680632073948,2.26628199,28177.0,28176.0,0.0231]
[1680632074391,2.24028199,28177.0,28176.0,0.02300078]
[1680632074888,2.26728199,28177.0,28176.0,0.02300078]
[1680632075571,2.43685037,28177.0,28176.0,0.02300078]
[1680632075787,2.26728199,28177.0,28176.0,0.02300078]
[1680632076237,2.43685037,28177.0,28176.0,0.02300078]
[1680632077621,2.26728199,28177.0,28176.0,0.02300078]
[1680632077856,2.43685037,28177.0,28176.0,0.02300078]
[1680632078076,2.43685037,28177.0,28174.0,0.02299]
[1680632078301,2.08211083,28176.0,28174.0,0.02299]
[1680632078528,1.29772472,28175.0,28174.0,0.02299]
[1680632078747,1.29772472,28175.0,28174.0,0.02305]
[1680632079195,1.38280483,28175.0,28174.0,0.02305]
[1680632079391,2.01672472,28175.0,28174.0,0.02305]
[1680632079732,2.10180483,28175.0,28174.0,0.02305]
[1680632079962,2.21189776,28175.0,28174.0,0.02305]
[1680632080182,2.21189776,28175.0,28174.0,0.02299]
[1680632085301,2.4839965,28175.0,28174.0,0.02299]
[1680632086025,2.20889776,28175.0,28174.0,0.02299]
[1680632093054,2.20889776,28175.0,28174.0,0.02299]
[1680632093491,2.33607397,28175.0,28174.0,0.02299]
[1680632093681,2.20889776,28175.0,28174.0,0.02299]
[1680632093889,2.33607397,28175.0,28174.0,0.02299]
[1680632094324,2.20889776,28175.0,28174.0,0.02299]
[1680632095388,2.33607397,28175.0,28174.0,0.02299]
[1680632095976,2.33628397,28175.0,28174.0,0.02299]
[1680632096183,2.33607397,28175.0,28174.0,0.02299]
[1680632100601,2.22603025,28175.0,28174.0,0.02299]
[1680632100793,2.09885404,28175.0,28174.0,0.02299]
[1680632101046,1.39885404,28175.0,28174.0,0.02299]
[1680632101489,1.31372472,28175.0,28174.0,0.02299]
[1680632101712,1.39885404,28175.0,28174.0,0.02299]
[1680632102842,1.49616697,28175.0,28174.0,0.02299]
[1680632105787,1.39885404,28175.0,28174.0,0.02299]
[1680632106233,1.40053904,28175.0,28174.0,0.02299]
[1680632106466,1.38155904,28175.0,28174.0,0.02299]
[1680632106667,1.29642972,28175.0,28174.0,0.02299]
[1680632107267,1.29642972,28175.0,28174.0,0.36055091]
[1680632107470,1.31578972,28175.0,28174.0,0.36073091]
[1680632107708,1.31578972,28175.0,28174.0,0.02317]
[1680632107874,1.31578972,28175.0,28174.0,0.02299]
[1680632108495,1.40478802,28175.0,28174.0,0.02299]
[1680632108695,1.50939534,28175.0,28174.0,0.02299]
[1680632109588,1.50939534,28175.0,28174.0,0.02292625]
[1680632109589,1.66246342,28175.0,28174.0,0.02292625]
[1680632109791,2.25892847,28175.0,28174.0,0.02292625]
[1680632109959,2.37230956,28175.0,28174.0,0.02292625]
[1680632110585,2.16017449,28175.0,28174.0,0.02292625]
[1680632110768,2.1004081,28175.0,28174.0,0.02292625]
[1680632110979,2.0814081,28175.0,28174.0,0.02292625]
[1680632111407,2.18865632,28175.0,28174.0,0.02292625]
[1680632111614,2.1084081,28175.0,28174.0,0.02292625]
[1680632111838,2.06335131,28175.0,28174.0,0.02292625]
[1680632112065,2.76335131,28175.0,28174.0,0.02292625]
[1680632112610,2.94713403,28175.0,28174.0,0.02292625]
[1680632112726,2.74524832,28175.0,28174.0,0.02292625]
[1680632113157,2.74545832,28175.0,28174.0,0.02292625]
[1680632115888,2.71845832,28175.0,28174.0,0.02292625]
[1680632116095,2.84328317,28175.0,28174.0,0.02292625]
[1680632116297,3.23943378,28175.0,28174.0,0.02292625]
[1680632116566,3.76417859,28175.0,28174.0,0.02292625]
[1680632117117,3.73717859,28175.0,28174.0,0.02292625]
[1680632117351,3.76417859,28175.0,28174.0,0.02292625]
[1680632117799,3.19751531,28175.0,28174.0,0.02292625]
[1680632118024,3.19772531,28175.0,28174.0,0.02292625]
[1680632118467,3.07129632,28175.0,28174.0,0.02292625]
[1680632118660,3.18339942,28175.0,28174.0,0.02292625]
[1680632119391,3.18360942,28175.0,28174.0,0.02292625]
[1680632121485,3.52406516,28175.0,28174.0,0.02292625]
[1680632122138,3.41175206,28175.0,28174.0,0.02292625]
[1680632122261,4.12726053,28175.0,28174.0,0.02292625]
[1680632122469,6.26537667,28175.0,28172.0,0.02299]
[1680632122741,0.55179,28173.0,28172.0,0.00557136]
[1680632122986,2.96730443,28173.0,28172.0,0.00557136]
[1680632123197,3.29352072,28173.0,28172.0,0.00557136]
[1680632123635,3.32052072,28173.0,28172.0,0.00557136]
[1680632123852,3.64825893,28173.0,28172.0,0.00557136]
[1680632124275,3.64825893,28173.0,28171.0,0.02299]
[1680632124276,0.15,28172.0,28171.0,0.02299]
[1680632124490,3.63041595,28172.0,28171.0,0.02299]
[1680632124700,3.43549193,28172.0,28171.0,0.02299]
[1680632124911,3.47802003,28172.0,28171.0,0.02299]
[1680632125127,3.83254824,28172.0,28171.0,0.02299]
[1680632125413,0.5238,28171.0,28170.0,0.01942473]
[1680632125629,3.90096154,28171.0,28170.0,0.01942473]
[1680632125830,6.00597733,28171.0,28170.0,0.01942473]
[1680632126036,6.14786243,28171.0,28170.0,0.01942473]
[1680632126255,4.25796293,28171.0,28170.0,0.01271073]
[1680632126460,4.47048205,28171.0,28170.0,7.3e-07]
[1680632126636,4.25796293,28171.0,28170.0,7.3e-07]
[1680632126836,6.17486243,28171.0,28170.0,7.3e-07]
[1680632127054,4.23096293,28171.0,28170.0,7.3e-07]
[1680632127503,4.23096293,28171.0,28168.0,0.01243173]
[1680632127735,0.54431638,28169.0,28168.0,0.01243173]
[1680632127924,2.3034759,28169.0,28168.0,0.01243173]
[1680632128185,2.80009219,28169.0,28168.0,0.01243173]
[1680632128378,2.75747813,28169.0,28168.0,0.01243173]
[1680632128593,2.9700586,28169.0,28168.0,0.00342852]
[1680632128812,2.9700586,28169.0,28167.0,0.00859852]
[1680632128813,0.5238,28168.0,28167.0,0.00859852]
[1680632129032,2.43442738,28168.0,28167.0,0.00859852]
[1680632129259,2.60488738,28168.0,28167.0,0.00859852]
[1680632129713,3.32260367,28168.0,28167.0,0.00859852]
[1680632130164,3.34960367,28168.0,28167.0,0.00859852]
[1680632130411,3.43419783,28168.0,28167.0,0.00859852]
[1680632130622,3.25667783,28168.0,28167.0,0.00859852]
[1680632131057,3.32510043,28168.0,28167.0,0.00859852]
[1680632131278,3.41000405,28168.0,28167.0,0.00859852]
[1680632131496,3.32510043,28168.0,28167.0,0.00859852]
[1680632131729,3.41000443,28168.0,28167.0,0.00859852]
[1680632132174,2.87770443,28168.0,28167.0,0.00859852]
[1680632132391,2.75027377,28168.0,28167.0,0.00859852]
[1680632133090,2.80947592,28168.0,28167.0,0.00859852]
[1680632133316,2.84438004,28168.0,28167.0,0.00267831]
[1680632133538,3.22668004,28168.0,28167.0,0.00267831]
[1680632134219,3.22668004,28168.0,28166.0,0.02299]
[1680632134220,0.5238,28167.0,28166.0,0.02299]
[1680632134450,3.19164179,28167.0,28166.0,0.02299]
[1680632134669,3.36210179,28167.0,28166.0,0.02299]
[1680632135080,3.41251061,28167.0,28166.0,0.0173784]
[1680632135289,3.4572269,28167.0,28166.0,0.0173784]
[1680632135427,2.96331583,28167.0,28166.0,0.0173784]
[1680632136078,2.96331583,28167.0,28166.0,0.01186032]
[1680632136513,2.58951583,28167.0,28166.0,0.01186032]
[1680632137043,2.58951583,28167.0,28166.0,0.00643421]
[1680632137915,2.57179954,28167.0,28166.0,0.00643421]
[1680632138186,2.57179954,28167.0,28166.0,0.00109854]
[1680632139095,2.57179954,28167.0,28162.0,0.02299]
[1680632139318,2.29604172,28166.0,28162.0,0.02299]
[1680632139537,0.020286,28165.0,28159.0,0.0751]
[1680632139751,0.14189681,28164.0,28159.0,0.0751]
[1680632139984,0.018899,28163.0,28159.0,0.0751]
[1680632140204,0.16079581,28163.0,28159.0,0.0751]
[1680632140434,0.019753,28162.0,28159.0,0.0751]
[1680632140658,0.1066187,28162.0,28159.0,0.0751]
[1680632140887,0.018261,28161.0,28159.0,0.0751]
[1680632141108,0.07021976,28161.0,28159.0,0.0751]
[1680632141345,0.019845,28160.0,28159.0,0.0751]
[1680632142643,0.012,28161.0,28159.0,0.0751]
[1680632142859,0.012,28161.0,28158.0,0.4495]
[1680632142860,0.13310658,28160.0,28158.0,0.4495]
[1680632143097,0.11400958,28160.0,28159.0,0.0757]
[1680632143311,0.11500958,28160.0,28159.0,0.0757]
[1680632143525,0.11400958,28160.0,28159.0,0.0757]
[1680632143958,0.13333258,28160.0,28159.0,0.0757]
[1680632144177,0.13433258,28160.0,28159.0,0.0757]
[1680632144666,0.14778684,28160.0,28159.0,0.0757]
[1680632144901,0.13433258,28160.0,28159.0,0.0757]
[1680632145119,0.11500958,28160.0,28159.0,0.0757]
[1680632146256,0.001,28160.0,28159.0,0.0757]
[1680632146693,0.001,28160.0,28159.0,0.4495]
[1680632146904,0.001,28160.0,28159.0,0.89831527]
[1680632147334,0.001,28160.0,28159.0,0.89331527]
[1680632150264,0.001,28160.0,28159.0,0.96831527]
[1680632151701,0.001,28160.0,28159.0,1.00558327]
[1680632152332,0.001,28160.0,28159.0,0.96831527]
[1680632152539,0.001,28160.0,28159.0,1.00779027]
[1680632154657,0.001,28160.0,28159.0,0.93709027]
[1680632154866,0.001,28160.0,28159.0,0.93779027]
[1680632155097,0.001,28160.0,28159.0,0.89831527]
[1680632156272,0.001,28160.0,28159.0,0.0757]
[1680632158108,0.05231212,28160.0,28159.0,0.0757]
[1680632160962,0.05231212,28160.0,28159.0,0.49176872]
[1680632162265,0.05231212,28160.0,28159.0,0.94056872]
[1680632162483,0.05231212,28160.0,28159.0,0.98045472]
[1680632164505,0.05231212,28160.0,28159.0,0.94056872]
[1680632165221,0.05231212,28160.0,28159.0,1.06978856]
[1680632165441,0.05231212,28160.0,28159.0,1.46757351]
[1680632165660,0.05231212,28160.0,28159.0,1.06978856]
[1680632166125,0.001,28160.0,28159.0,1.06978856]
[1680632166564,0.001,28160.0,28159.0,1.50075723]
[1680632166976,0.10341492,28165.0,28159.0,1.50075723]
[1680632167200,0.10341492,28165.0,28164.0,0.5239]
[1680632167420,0.12278492,28165.0,28164.0,0.5239]
[1680632167644,0.10362492,28165.0,28164.0,0.5239]
[1680632168068,0.16612741,28165.0,28164.0,0.5239]
[1680632168283,0.16712741,28165.0,28164.0,0.5369]
[1680632169669,0.06371249,28165.0,28164.0,0.5369]
[1680632169896,0.06371249,28165.0,28164.0,0.53683941]
[1680632170136,0.06350249,28165.0,28164.0,0.53683941]
[1680632171875,0.06350249,28165.0,28164.0,0.3868]
[1680632176329,0.1844755,28165.0,28164.0,0.3868]
[1680632176543,0.1846855,28165.0,28164.0,0.3868]
[1680632177399,0.2888235,28165.0,28164.0,0.013]
[1680632177616,0.2886135,28165.0,28164.0,0.013]
[1680632177832,0.2037095,28165.0,28164.0,0.013]
[1680632178050,0.2029095,28165.0,28164.0,0.013]
[1680632178684,0.1844755,28165.0,28164.0,0.013]
[1680632179103,0.2033335,28165.0,28164.0,0.013]
[1680632180432,0.1844755,28165.0,28164.0,0.013]
[1680632180642,0.2023465,28165.0,28164.0,0.013]
[1680632182956,0.1844755,28165.0,28164.0,0.013]
[1680632183149,0.2042805,28165.0,28164.0,0.013]
[1680632184080,0.08307549,28165.0,28164.0,0.013]
[1680632184524,0.06350249,28165.0,28164.0,0.013]
[1680632184744,0.08251649,28165.0,28164.0,0.013]
[1680632184986,0.08239349,28165.0,28164.0,0.013]
[1680632185622,0.06350249,28165.0,28164.0,0.013]
[1680632185842,0.06350249,28165.0,28164.0,0.79770279]
[1680632186925,0.06339628,28165.0,28164.0,0.79770279]
[1680632187044,0.06339628,28165.0,28164.0,0.79788279]
[1680632195265,0.06339628,28165.0,28164.0,0.85208127]
[1680632195566,0.06339628,28165.0,28164.0,0.42689]
[1680632195660,0.06339628,28165.0,28164.0,0.82776569]
[1680632195890,0.06339628,28165.0,28164.0,0.86707069]
[1680632196120,0.06339628,28165.0,28164.0,0.82776569]
[1680632196352,0.06339628,28165.0,28164.0,0.86999169]
[1680632196630,0.06339628,28165.0,28164.0,0.82776569]
[1680632196879,0.06339628,28165.0,28164.0,0.01318]
[1680632197100,0.08239628,28165.0,28164.0,0.01318]
[1680632197337,0.06339628,28165.0,28164.0,0.01318]
[1680632198018,0.06339628,28165.0,28164.0,0.38698]
[1680632200672,0.08225828,28165.0,28164.0,0.38698]
[1680632200863,0.06339628,28165.0,28164.0,0.38698]
[1680632201313,0.08296328,28165.0,28164.0,0.38698]
[1680632202177,0.06339628,28165.0,28164.0,0.38698]
[1680632202878,0.06339628,28165.0,28164.0,0.76670475]
[1680632206425,0.08404528,28165.0,28164.0,0.01318]
[1680632206641,0.08265928,28165.0,28164.0,0.01318]
[1680632206896,0.08265928,28165.0,28164.0,0.013]
[1680632207136,0.19060874,28165.0,28164.0,0.013]
[1680632208028,0.19060874,28165.0,28164.0,0.01318]
[1680632211317,0.19060874,28165.0,28164.0,0.013]
[1680632211753,0.19060874,28165.0,28164.0,0.01318]
[1680632214608,0.19060874,28165.0,28164.0,0.013]
[1680632216703,0.19060874,28165.0,28164.0,0.01290074]
[1680632218141,0.12689462,28165.0,28164.0,0.01290074]
[1680632218330,0.29372528,28165.0,28164.0,0.01290074]
[1680632218602,0.40746239,28165.0,28164.0,0.01290074]
[1680632219057,0.29372528,28165.0,28164.0,0.01290074]
[1680632219275,0.46363169,28165.0,28164.0,0.00746808]
[1680632219495,0.29272528,28165.0,28157.0,0.80365639]
[1680632219722,0.40496869,28165.0,28164.0,0.006]
[1680632219962,0.33558903,28165.0,28158.0,0.46335183]
[1680632220184,0.28453803,28165.0,28164.0,0.001]
[1680632220402,0.75368653,28165.0,28158.0,0.46335183]
[1680632220646,0.0394,28162.0,28158.0,0.46335183]
[1680632220876,0.0394,28162.0,28159.0,0.3777739]
[1680632220877,0.18129681,28162.0,28159.0,0.3777739]
[1680632221103,0.019688,28161.0,28159.0,0.3779539]
[1680632222613,0.12312048,28161.0,28159.0,0.3779539]
[1680632222828,0.019972,28160.0,28159.0,0.3849539]
[1680632223056,0.10543248,28161.0,28159.0,0.3849539]
[1680632223728,0.10343248,28161.0,28159.0,0.3779539]
[1680632223947,0.002,28160.0,28159.0,0.3849539]
[1680632224168,0.10343248,28161.0,28159.0,0.3779539]
[1680632225117,0.0394,28162.0,28160.0,0.80431988]
[1680632225343,0.002,28161.0,28160.0,0.80449988]
[1680632225971,0.0394,28162.0,28160.0,0.80449988]
[1680632226214,0.0414,28162.0,28160.0,0.81149988]
[1680632226409,0.0394,28162.0,28160.0,0.80449988]
[1680632226662,0.002,28161.0,28160.0,0.81149988]
[1680632226888,0.0394,28162.0,28160.0,0.80449988]
[1680632227099,0.05621078,28161.0,28160.0,0.81149988]
[1680632228400,0.05621078,28161.0,28160.0,0.80449988]
[1680632228636,0.05821078,28161.0,28160.0,0.81149988]
[1680632228864,0.05821078,28161.0,28160.0,0.00718]
[1680632229087,0.05821078,28161.0,28160.0,0.007]
[1680632229307,0.07699778,28161.0,28160.0,0.007]
[1680632230076,0.05821078,28161.0,28160.0,0.007]
[1680632230756,0.05821078,28161.0,28160.0,0.41027532]
[1680632230982,0.05821078,28161.0,28160.0,0.41045532]
[1680632231419,0.05821078,28161.0,28160.0,0.00718]
[1680632231651,0.05821078,28161.0,28160.0,0.007]
[1680632232549,0.07783578,28161.0,28160.0,0.21006895]
[1680632232804,0.07783578,28161.0,28160.0,0.21024895]
[1680632232805,0.05821078,28161.0,28160.0,0.21024895]
[1680632233032,0.05821078,28161.0,28160.0,0.21006895]
[1680632233252,0.05821078,28161.0,28160.0,0.21018895]
[1680632233761,0.05821078,28161.0,28160.0,0.21024895]
[1680632234782,0.05821078,28161.0,28160.0,0.21006895]
[1680632235008,0.05821078,28161.0,28160.0,0.21024895]
[1680632236733,0.05821078,28161.0,28160.0,0.21006895]
[1680632236958,0.05821078,28161.0,28160.0,0.58398895]
[1680632237171,0.05821078,28161.0,28160.0,0.58404895]
[1680632238530,0.05821078,28161.0,28160.0,0.45638]
[1680632238758,0.05821078,28161.0,28160.0,0.498478]
[1680632238984,0.05821078,28161.0,28160.0,0.648478]
[1680632240093,0.002,28161.0,28160.0,0.648478]
[1680632240606,0.08491832,28169.0,28160.0,0.648478]
[1680632240607,0.12432832,28169.0,28161.0,0.15]
[1680632240612,0.00021,28169.0,28162.0,0.412012]
[1680632240853,0.23754771,28170.0,28165.0,0.3738]
[1680632240854,0.15283939,28170.0,28165.0,0.3738]
[1680632241078,0.04758834,28168.0,28166.0,0.35471056]
[1680632241385,0.04758834,28168.0,28167.0,0.48628]
[1680632242107,0.1341549,28171.0,28167.0,0.48628]
[1680632242353,0.1339449,28171.0,28169.0,0.3738]
[1680632242811,0.00021,28173.0,28169.0,0.75784611]
[1680632242812,0.12418263,28173.0,28169.0,0.75784611]
[1680632243046,0.03998811,28170.0,28169.0,0.75784611]
[1680632243958,0.03998811,28170.0,28169.0,0.77284611]
[1680632245499,0.03989698,28170.0,28169.0,0.77284611]
[1680632246091,0.12382761,28172.0,28169.0,0.77284611]
[1680632246735,0.12382761,28172.0,28169.0,0.75784611]
[1680632246972,0.0400266,28171.0,28169.0,0.77284611]
[1680632247890,0.0400266,28171.0,28169.0,0.75784611]
[1680632248078,0.14336115,28171.0,28169.0,0.015]
[1680632248560,0.0400266,28171.0,28169.0,0.015]
[1680632250650,0.0400266,28171.0,28169.0,0.47394741]
[1680632255961,0.0400266,28171.0,28169.0,0.015]
[1680632255962,0.18534081,28170.0,28169.0,0.015]
[1680632256199,0.15831843,28170.0,28169.0,0.015]
[1680632256426,0.14060214,28170.0,28169.0,0.015]
[1680632257124,0.14060214,28170.0,28165.0,0.43499846]
[1680632257357,0.0245,28167.0,28165.0,0.43499846]
[1680632257819,0.02047,28166.0,28165.0,0.43499846]
[1680632258052,0.0245,28167.0,28165.0,0.43499846]
[1680632258282,0.0245,28167.0,28166.0,0.36443472]
[1680632258483,0.0245,28167.0,28166.0,0.36461472]
[1680632258702,0.0245,28167.0,28166.0,0.00018]
[1680632258922,0.0245,28167.0,28165.0,0.37000804]
[1680632258923,0.043174,28167.0,28165.0,0.37000804]
[1680632259143,0.0245,28167.0,28165.0,0.38500804]
[1680632259395,0.0245,28167.0,28165.0,0.37000804]
[1680632259594,0.0245,28167.0,28166.0,0.008]
[1680632259709,0.0245,28167.0,28165.0,0.37018804]
[1680632259931,0.0245,28167.0,28165.0,0.38518804]
[1680632260145,0.0245,28167.0,28166.0,0.44498036]
[1680632260358,0.0245,28167.0,28166.0,0.44516036]
[1680632260810,0.0245,28167.0,28166.0,0.44510036]
[1680632261025,0.0245,28167.0,28166.0,0.44516036]
[1680632261237,0.0245,28167.0,28166.0,0.81896036]
[1680632261460,0.0245,28167.0,28166.0,0.82696036]
[1680632265038,0.0635147,28167.0,28166.0,0.82696036]
[1680632266351,0.0635147,28167.0,28166.0,0.82678036]
[1680632266793,0.0635147,28167.0,28166.0,0.82696036]
[1680632269269,0.0635147,28167.0,28166.0,0.00818]
[1680632269479,0.0635147,28167.0,28166.0,0.008]
[1680632269698,0.19874404,28167.0,28166.0,0.008]
[1680632269910,0.21820404,28167.0,28166.0,0.00812]
[1680632270136,0.24669191,28167.0,28166.0,0.008]
[1680632270366,0.12251139,28167.0,28166.0,0.008]
[1680632270588,0.27251139,28167.0,28166.0,0.008]
[1680632271256,0.12272139,28167.0,28161.0,7.461e-05]
[1680632271467,0.0245,28162.0,28161.0,7.461e-05]
[1680632271710,0.04387,28162.0,28161.0,7.461e-05]
[1680632271912,0.16068371,28162.0,28161.0,7.461e-05]
[1680632272843,0.16068371,28162.0,28158.0,0.82274887]
[1680632273063,0.032923,28161.0,28158.0,0.82274887]
[1680632273280,0.018243,28160.0,28158.0,0.82286887]
[1680632273492,0.018243,28160.0,28158.0,0.44912887]
[1680632273704,0.018243,28160.0,28158.0,0.45712887]
[1680632273931,0.018243,28160.0,28158.0,0.44912887]
[1680632274142,0.019243,28160.0,28158.0,0.45712887]
[1680632274350,0.001,28160.0,28158.0,0.45712887]
[1680632275011,0.03877738,28159.0,28158.0,0.45712887]
[1680632275860,0.03877738,28159.0,28158.0,0.44912887]
[1680632276064,0.001,28159.0,28158.0,0.45712887]
[1680632276275,0.001,28159.0,28158.0,0.00818]
[1680632276607,0.001,28159.0,28158.0,0.008]
[1680632277012,0.001,28159.0,28158.0,0.42882091]
[1680632277218,0.001,28159.0,28158.0,0.38198]
[1680632277588,0.001,28159.0,28158.0,0.71714549]
[1680632279089,0.001,28159.0,28158.0,0.71696549]
[1680632279528,0.001,28159.0,28158.0,0.71714549]
[1680632282341,0.001,28159.0,28158.0,0.38198]
[1680632282540,0.11665144,28159.0,28158.0,0.00818]
[1680632282764,0.11665144,28159.0,28158.0,0.008]
[1680632282976,0.11665144,28159.0,28158.0,0.00818]
[1680632283185,0.0146,28159.0,28158.0,0.00818]
[1680632285583,0.13920282,28161.0,28158.0,0.00818]
[1680632285584,0.05380282,28161.0,28158.0,0.00818]
[1680632285804,0.0136,28159.0,28158.0,0.44320136]
[1680632286264,0.0136,28159.0,28158.0,0.44338136]
[1680632287328,0.0136,28159.0,28158.0,0.44332136]
[1680632287640,0.0136,28159.0,28158.0,0.44320136]
[1680632288182,0.0136,28159.0,28158.0,0.44332136]
[1680632290275,0.0895574,28161.0,28158.0,0.44332136]
[1680632290276,0.0135,28160.0,28158.0,0.44332136]
[1680632290493,0.019253,28159.0,28158.0,0.44332136]
[1680632290717,0.0135,28160.0,28158.0,0.44338136]
[1680632290928,0.018167,28159.0,28158.0,0.44332136]
[1680632291135,0.05376078,28159.0,28158.0,0.43538136]
[1680632291435,0.03559378,28159.0,28158.0,0.44338136]
[1680632291852,0.03559378,28159.0,28158.0,0.43538136]
[1680632292068,0.005,28160.0,28158.0,0.44338136]
[1680632292290,0.020344,28159.0,28158.0,0.44338136]
[1680632292497,0.005,28160.0,28158.0,0.44338136]
[1680632292723,0.005,28160.0,28158.0,0.44332136]
[1680632292949,0.017965,28159.0,28158.0,0.44332136]
[1680632293165,0.05236773,28159.0,28158.0,0.44332136]
[1680632293394,0.03440273,28159.0,28158.0,0.43538136]
[1680632293610,0.03440273,28159.0,28158.0,0.44338136]
[1680632293832,0.03440273,28159.0,28158.0,0.43538136]
[1680632294063,0.0945574,28161.0,28158.0,0.44338136]
[1680632294293,0.0945574,28161.0,28158.0,0.00812]
[1680632294294,0.03575458,28161.0,28158.0,0.00812]
[1680632294516,0.005,28164.0,28159.0,0.3738]
[1680632294746,0.018627,28163.0,28159.0,0.3738]
[1680632295229,0.05218052,28163.0,28160.0,0.78240547]
[1680632295446,0.03355352,28163.0,28160.0,0.78240547]
[1680632296336,0.03255352,28163.0,28160.0,0.78252547]
[1680632296591,0.03255352,28163.0,28160.0,0.78258547]
[1680632296824,0.03755352,28163.0,28160.0,0.78258547]
[1680632297059,0.03755352,28163.0,28161.0,0.3738]
[1680632297779,0.03255352,28163.0,28162.0,0.84261278]
[1680632298247,0.06906433,28166.0,28162.0,0.84261278]
[1680632298920,0.019362,28165.0,28162.0,0.84261278]
[1680632299144,0.05820488,28165.0,28162.0,0.84273278]
[1680632299366,0.03884288,28165.0,28162.0,0.84279278]
[1680632299586,0.03884288,28165.0,28162.0,0.85761278]
[1680632299799,0.03884288,28165.0,28162.0,0.84273278]
[1680632300026,0.03884288,28165.0,28162.0,0.85773278]
[1680632300223,0.03884288,28165.0,28163.0,0.34388349]
[1680632302270,0.03884288,28165.0,28163.0,0.35188349]
[1680632302493,0.10669064,28165.0,28163.0,0.35188349]
[1680632302715,0.019449,28164.0,28163.0,0.35200349]
[1680632302942,0.10669064,28165.0,28163.0,0.35200349]
[1680632303175,0.06784776,28165.0,28163.0,0.35188349]
[1680632303836,0.019008,28164.0,28163.0,0.35188349]
[1680632304106,0.06784776,28165.0,28163.0,0.35188349]
[1680632304327,0.0385559,28164.0,28163.0,0.35188349]
[1680632305431,0.0385559,28164.0,28163.0,0.34388349]
[1680632305645,0.0385559,28164.0,28163.0,0.35188349]
[1680632306285,0.0385559,28164.0,28163.0,0.35200349]
[1680632306485,0.0385559,28164.0,28163.0,0.35188349]
[1680632307130,0.08035642,28167.0,28163.0,0.35188349]
[1680632307363,1.297152,28166.0,28163.0,0.35188349]
[1680632307574,0.018351,28165.0,28163.0,0.35206349]
[1680632307800,0.018777,28166.0,28163.0,0.35188349]
[1680632308009,0.018777,28166.0,28163.0,0.34388349]
[1680632308236,0.0385559,28164.0,28163.0,0.35188349]
[1680632308460,0.0385559,28164.0,28163.0,0.34388349]
[1680632308674,0.0385559,28164.0,28163.0,0.35194349]
[1680632308899,0.0385559,28164.0,28163.0,0.34400349]
[1680632309159,0.07855248,28166.0,28163.0,0.35194349]
[1680632309379,0.018437,28165.0,28163.0,0.35188349]
[1680632309813,0.018437,28165.0,28163.0,0.34388349]
[1680632311334,0.018437,28165.0,28163.0,0.35188349]
[1680632312355,0.07855248,28166.0,28163.0,0.35188349]
[1680632312576,0.018561,28165.0,28163.0,0.35188349]
[1680632312798,0.018561,28165.0,28163.0,0.35200349]
[1680632313782,0.018561,28165.0,28163.0,0.34400349]
[1680632313977,0.018561,28165.0,28163.0,0.35200349]
[1680632314228,0.018561,28165.0,28163.0,0.34400349]
[1680632314448,0.018561,28165.0,28163.0,0.35200349]
[1680632320002,0.10240268,28165.0,28163.0,0.35200349]
[1680632320189,0.018049,28164.0,28163.0,0.35206349]
[1680632321287,0.018049,28164.0,28163.0,0.34406349]
[1680632321505,0.018049,28164.0,28163.0,0.35206349]
[1680632322196,0.05731386,28164.0,28163.0,0.35206349]
[1680632325398,0.03926486,28164.0,28163.0,0.35206349]
[1680632326283,0.17079638,28166.0,28163.0,0.35206349]
[1680632326504,0.019189,28165.0,28163.0,0.35206349]
[1680632328269,0.019189,28165.0,28163.0,0.34406349]
[1680632328494,0.019189,28165.0,28163.0,0.35206349]
[1680632336197,0.019189,28165.0,28164.0,0.44466675]
[1680632337322,0.05787907,28165.0,28164.0,0.44466675]
[1680632337545,0.05787907,28165.0,28164.0,0.44678675]
[1680632337766,0.05787907,28165.0,28164.0,0.00212]
[1680632337985,0.22380042,28165.0,28164.0,0.002]
[1680632339735,0.22401042,28165.0,28164.0,0.002]
[1680632340403,0.3535879,28165.0,28164.0,0.002]
[1680632340817,0.22621042,28165.0,28164.0,0.002]
[1680632341266,0.22621042,28165.0,28163.0,0.44944503]
[1680632341487,0.25119587,28165.0,28164.0,0.002]
[1680632341706,0.27234487,28165.0,28164.0,0.002]
[1680632342138,0.18742655,28165.0,28164.0,0.002]
[1680632342406,0.27239853,28165.0,28164.0,0.002]
[1680632342599,0.18742655,28165.0,28164.0,0.002]
[1680632344372,0.27237269,28165.0,28164.0,0.002]
[1680632344816,0.18742655,28165.0,28164.0,0.002]
[1680632345036,0.27237153,28165.0,28164.0,0.002]
[1680632345262,0.25259425,28165.0,28164.0,0.002]
[1680632345478,0.25259425,28165.0,28162.0,0.3738]
[1680632345699,0.10709536,28164.0,28162.0,0.3738]
[1680632345925,0.018407,28163.0,28162.0,0.74457631]
[1680632346151,0.018407,28163.0,28162.0,0.74463631]
[1680632346592,0.018407,28163.0,28162.0,0.75263631]
[1680632347029,0.018407,28163.0,28162.0,0.74463631]
[1680632347246,0.018407,28163.0,28162.0,0.75263631]
[1680632350809,0.018407,28163.0,28162.0,0.75269631]
[1680632351218,0.018407,28163.0,28162.0,0.75263631]
[1680632351358,0.018407,28163.0,28162.0,0.37883631]
[1680632351585,0.018407,28163.0,28162.0,0.75263631]